[Event "Titled Tuesday Blitz March 28 Early 2023"]
[White "Krsnik Cohar, Ivan Vihor"]
[Black "Ashraf, Artin"]
[WhiteFideId "14520044"]
[BlackFideId "22514805"]
[WhiteElo "2414"]
[BlackElo "2188"]
[Result "0-1"]
[Round "02"]
[TimeControl "180+2"]
[Date "2023.03.28"]
[WhiteClock "0:00:04"]
[BlackClock "0:00:45"]

1. e4 {[%clk 0:03:00]}  c5 {[%clk 0:02:59]} 2. Ne2 {[%clk 0:03:00]}  d6 {[%clk 0:02:55]} 3. g3 {[%clk 0:03:01]}  Nc6 {[%clk 0:02:50]} 4. Bg2 {[%clk 0:03:01]}  g6 {[%clk 0:02:50]} 5. c3 {[%clk 0:03:01]}  Bg7 {[%clk 0:02:49]} 6. d4 {[%clk 0:03:01]}  cxd4 {[%clk 0:02:47]} 7. cxd4 {[%clk 0:03:02]}  Nf6 {[%clk 0:02:47]} 8. Nbc3 {[%clk 0:03:02]}  O-O {[%clk 0:02:47]} 9. h3 {[%clk 0:03:02]}  Bd7 {[%clk 0:02:44]} 10. Be3 {[%clk 0:03:02]}  Rc8 {[%clk 0:02:43]} 11. Qd2 {[%clk 0:03:01]}  a6 {[%clk 0:02:42]} 12. Rc1 {[%clk 0:03:00]}  b5 {[%clk 0:02:39]} 13. O-O {[%clk 0:02:59]}  e5 {[%clk 0:02:32]} 14. f4 {[%clk 0:02:51]}  exd4 {[%clk 0:02:17]} 15. Nxd4 {[%clk 0:02:51]}  Re8 {[%clk 0:02:17]} 16. Qd3 {[%clk 0:01:47]}  Na5 {[%clk 0:02:08]} 17. b3 {[%clk 0:01:43]}  Nb7 {[%clk 0:02:07]} 18. b4 {[%clk 0:01:37]}  Rc4 {[%clk 0:01:27]} 19. e5 {[%clk 0:01:30]}  dxe5 {[%clk 0:01:27]} 20. fxe5 {[%clk 0:01:30]}  Rxe5 {[%clk 0:01:26]} 21. Bxb7 {[%clk 0:01:26]}  Bxh3 {[%clk 0:01:14]} 22. Rfe1 {[%clk 0:00:48]}  Ng4 {[%clk 0:01:02]} 23. Rcd1 {[%clk 0:00:13]}  Rxe3 {[%clk 0:00:48]} 24. Rxe3 {[%clk 0:00:11]}  Rxd4 {[%clk 0:00:46]} 25. Qe2 {[%clk 0:00:04]}  Nxe3 {[%clk 0:00:45]} 0-1


[Site "https://www.chess.com"]

[Event "Titled Tuesday Blitz March 28 Early 2023"]
[White "Vallejo Diaz, Javier"]
[Black "Urazayev, Arystanbek"]
[WhiteFideId "2256398"]
[BlackFideId "13709810"]
[WhiteElo "2563"]
[BlackElo "2479"]
[Result "0-1"]
[Round "02"]
[TimeControl "180+2"]
[Date "2023.03.28"]
[WhiteClock "0:00:02"]
[BlackClock "0:00:18"]

1. e4 {[%clk 0:03:00]}  c6 {[%clk 0:02:51]} 2. d4 {[%clk 0:03:00]}  d5 {[%clk 0:02:52]} 3. Nd2 {[%clk 0:03:00]}  dxe4 {[%clk 0:02:52]} 4. Nxe4 {[%clk 0:03:01]}  Bf5 {[%clk 0:02:52]} 5. Ng3 {[%clk 0:03:01]}  Bg6 {[%clk 0:02:53]} 6. h4 {[%clk 0:03:01]}  h6 {[%clk 0:02:54]} 7. Nh3 {[%clk 0:03:01]}  e6 {[%clk 0:02:52]} 8. Nf4 {[%clk 0:03:01]}  Bh7 {[%clk 0:02:53]} 9. Bc4 {[%clk 0:03:02]}  Nf6 {[%clk 0:02:52]} 10. Qe2 {[%clk 0:03:02]}  Nd5 {[%clk 0:02:40]} 11. c3 {[%clk 0:02:49]}  Be7 {[%clk 0:02:34]} 12. Ngh5 {[%clk 0:02:47]}  Rg8 {[%clk 0:02:23]} 13. Be3 {[%clk 0:01:52]}  Nd7 {[%clk 0:02:20]} 14. Nxd5 {[%clk 0:01:48]}  cxd5 {[%clk 0:02:20]} 15. Bd3 {[%clk 0:01:48]}  Bxd3 {[%clk 0:02:16]} 16. Qxd3 {[%clk 0:01:49]}  Qb6 {[%clk 0:02:17]} 17. O-O-O {[%clk 0:01:46]}  O-O-O {[%clk 0:02:12]} 18. Kb1 {[%clk 0:01:45]}  g6 {[%clk 0:02:09]} 19. Nf4 {[%clk 0:01:37]}  h5 {[%clk 0:02:10]} 20. g3 {[%clk 0:01:32]}  Nf6 {[%clk 0:02:10]} 21. f3 {[%clk 0:01:30]}  Bd6 {[%clk 0:02:06]} 22. Rc1 {[%clk 0:01:17]}  Kb8 {[%clk 0:02:06]} 23. Qd2 {[%clk 0:01:12]}  a6 {[%clk 0:02:02]} 24. Rhg1 {[%clk 0:01:11]}  Qb5 {[%clk 0:01:59]} 25. Nd3 {[%clk 0:01:10]}  Ka8 {[%clk 0:01:55]} 26. Bg5 {[%clk 0:01:08]}  Be7 {[%clk 0:01:54]} 27. Ne5 {[%clk 0:01:06]}  Rgf8 {[%clk 0:01:45]} 28. Bh6 {[%clk 0:01:02]}  Rg8 {[%clk 0:01:34]} 29. Nxf7 {[%clk 0:01:01]}  Rc8 {[%clk 0:01:34]} 30. Bg5 {[%clk 0:00:54]}  Rg7 {[%clk 0:01:24]} 31. Ne5 {[%clk 0:00:52]}  Ng8 {[%clk 0:01:24]} 32. Rge1 {[%clk 0:00:48]}  Bd6 {[%clk 0:01:22]} 33. f4 {[%clk 0:00:41]}  Be7 {[%clk 0:01:00]} 34. Nf3 {[%clk 0:00:34]}  Bxg5 {[%clk 0:00:56]} 35. Nxg5 {[%clk 0:00:34]}  Nf6 {[%clk 0:00:56]} 36. Rxe6 {[%clk 0:00:32]}  Ng4 {[%clk 0:00:51]} 37. Rce1 {[%clk 0:00:32]}  Rgc7 {[%clk 0:00:51]} 38. Rc1 {[%clk 0:00:20]}  Rc6 {[%clk 0:00:51]} 39. Qe2 {[%clk 0:00:17]}  Qb6 {[%clk 0:00:47]} 40. Rxc6 {[%clk 0:00:15]}  Rxc6 {[%clk 0:00:48]} 41. Ka1 {[%clk 0:00:14]}  Ka7 {[%clk 0:00:49]} 42. Re1 {[%clk 0:00:14]}  Nf6 {[%clk 0:00:46]} 43. Qe5 {[%clk 0:00:13]}  Qa5 {[%clk 0:00:40]} 44. Qe7 {[%clk 0:00:11]}  Ng4 {[%clk 0:00:25]} 45. Qb4 {[%clk 0:00:06]}  Qxb4 {[%clk 0:00:17]} 46. cxb4 {[%clk 0:00:06]}  Ne3 {[%clk 0:00:16]} 47. Kb1 {[%clk 0:00:06]}  Nf5 {[%clk 0:00:15]} 48. Re6 {[%clk 0:00:06]}  Nxd4 {[%clk 0:00:14]} 49. Rxc6 {[%clk 0:00:06]}  bxc6 {[%clk 0:00:15]} 50. Kc1 {[%clk 0:00:05]}  Ne2+ {[%clk 0:00:16]} 51. Kd2 {[%clk 0:00:06]}  Nxg3 {[%clk 0:00:17]} 52. Ne6 {[%clk 0:00:06]}  Nf5 {[%clk 0:00:17]} 53. Nd8 {[%clk 0:00:04]}  Kb6 {[%clk 0:00:16]} 54. Kd3 {[%clk 0:00:05]}  Nxh4 {[%clk 0:00:17]} 55. a4 {[%clk 0:00:05]}  Nf5 {[%clk 0:00:16]} 56. Ne6 {[%clk 0:00:06]}  h4 {[%clk 0:00:16]} 57. Ng5 {[%clk 0:00:06]}  a5 {[%clk 0:00:16]} 58. bxa5+ {[%clk 0:00:02]}  Kxa5 {[%clk 0:00:17]} 59. b3 {[%clk 0:00:03]}  c5 {[%clk 0:00:17]} 60. Ne6 {[%clk 0:00:03]}  Kb4 {[%clk 0:00:17]} 61. a5 {[%clk 0:00:03]}  Kxa5 {[%clk 0:00:16]} 62. Nxc5 {[%clk 0:00:02]}  h3 {[%clk 0:00:17]} 63. Ke2 {[%clk 0:00:02]}  h2 {[%clk 0:00:18]} 64. Nd3 {[%clk 0:00:02]}  h1=Q {[%clk 0:00:18]} 0-1


[Site "https://www.chess.com"]

[Event "Titled Tuesday Blitz March 28 Early 2023"]
[White "Drori, Saar"]
[Black "Asadli, Vugar"]
[WhiteFideId "2812444"]
[BlackFideId "13405764"]
[WhiteElo "2322"]
[BlackElo "2598"]
[Result "0-1"]
[Round "02"]
[TimeControl "180+2"]
[Date "2023.03.28"]
[WhiteClock "0:00:12"]
[BlackClock "0:00:49"]

1. e4 {[%clk 0:03:00]}  c5 {[%clk 0:02:59]} 2. Nc3 {[%clk 0:02:59]}  Nc6 {[%clk 0:02:58]} 3. g3 {[%clk 0:03:00]}  g6 {[%clk 0:02:55]} 4. Bg2 {[%clk 0:03:00]}  Bg7 {[%clk 0:02:55]} 5. d3 {[%clk 0:03:01]}  Rb8 {[%clk 0:02:51]} 6. Be3 {[%clk 0:03:01]}  d6 {[%clk 0:02:48]} 7. Qd2 {[%clk 0:03:01]}  b5 {[%clk 0:02:44]} 8. a3 {[%clk 0:03:02]}  a5 {[%clk 0:02:35]} 9. Nge2 {[%clk 0:03:00]}  b4 {[%clk 0:02:32]} 10. axb4 {[%clk 0:03:01]}  axb4 {[%clk 0:02:33]} 11. Nd1 {[%clk 0:03:02]}  e5 {[%clk 0:02:29]} 12. O-O {[%clk 0:03:00]}  Nge7 {[%clk 0:02:29]} 13. Bh6 {[%clk 0:02:59]}  O-O {[%clk 0:02:27]} 14. Bxg7 {[%clk 0:02:58]}  Kxg7 {[%clk 0:02:28]} 15. Ne3 {[%clk 0:02:57]}  Nd4 {[%clk 0:02:12]} 16. f4 {[%clk 0:02:42]}  f6 {[%clk 0:02:08]} 17. g4 {[%clk 0:02:29]}  Nec6 {[%clk 0:01:56]} 18. f5 {[%clk 0:02:19]}  Nxe2+ {[%clk 0:01:33]} 19. Qxe2 {[%clk 0:02:19]}  g5 {[%clk 0:01:32]} 20. h4 {[%clk 0:02:01]}  h6 {[%clk 0:01:31]} 21. c3 {[%clk 0:01:37]}  Rf7 {[%clk 0:01:31]} 22. Nc4 {[%clk 0:01:34]}  Rfb7 {[%clk 0:01:20]} 23. Ra6 {[%clk 0:01:21]}  Qc7 {[%clk 0:01:20]} 24. Ra2 {[%clk 0:01:07]}  Bd7 {[%clk 0:01:20]} 25. Rfa1 {[%clk 0:01:03]}  Be8 {[%clk 0:01:20]} 26. Ra6 {[%clk 0:00:54]}  Bf7 {[%clk 0:01:19]} 27. Ne3 {[%clk 0:00:48]}  bxc3 {[%clk 0:01:14]} 28. bxc3 {[%clk 0:00:49]}  Rb2 {[%clk 0:01:14]} 29. Qd1 {[%clk 0:00:40]}  Qb7 {[%clk 0:01:07]} 30. Qa4 {[%clk 0:00:33]}  Rb1+ {[%clk 0:01:02]} 31. Rxb1 {[%clk 0:00:20]}  Qxb1+ {[%clk 0:01:02]} 32. Nf1 {[%clk 0:00:19]}  Ne7 {[%clk 0:00:54]} 33. hxg5 {[%clk 0:00:18]}  hxg5 {[%clk 0:00:54]} 34. Rxd6 {[%clk 0:00:19]}  Rb2 {[%clk 0:00:53]} 35. Qd7 {[%clk 0:00:17]}  Qe1 {[%clk 0:00:51]} 36. Bh3 {[%clk 0:00:13]}  Qf2+ {[%clk 0:00:49]} 37. Kh1 {[%clk 0:00:12]}  Qf3+ {[%clk 0:00:49]} 38. Kg1 {[%clk 0:00:12]}  Qxh3 {[%clk 0:00:49]} 0-1


[Site "https://www.chess.com"]

[Event "Titled Tuesday Blitz March 28 Early 2023"]
[White "Bilan, Danila"]
[Black "Ozen, Bahadir"]
[WhiteFideId "24161918"]
[BlackFideId "6337058"]
[WhiteElo "2182"]
[BlackElo "2503"]
[Result "0-1"]
[Round "02"]
[TimeControl "180+2"]
[Date "2023.03.28"]
[WhiteClock "0:00:08"]
[BlackClock "0:01:07"]

1. d4 {[%clk 0:02:57]}  d6 {[%clk 0:02:59]} 2. Nf3 {[%clk 0:02:57]}  Bg4 {[%clk 0:02:59]} 3. e3 {[%clk 0:02:51]}  Nf6 {[%clk 0:02:56]} 4. c3 {[%clk 0:02:38]}  Nbd7 {[%clk 0:02:51]} 5. Nbd2 {[%clk 0:02:33]}  e5 {[%clk 0:02:39]} 6. Qb3 {[%clk 0:02:30]}  Rb8 {[%clk 0:02:38]} 7. Bc4 {[%clk 0:01:58]}  Bh5 {[%clk 0:02:37]} 8. dxe5 {[%clk 0:01:41]}  dxe5 {[%clk 0:02:35]} 9. Qa4 {[%clk 0:01:16]}  a6 {[%clk 0:02:20]} 10. Qc2 {[%clk 0:01:03]}  b5 {[%clk 0:02:14]} 11. Bb3 {[%clk 0:01:00]}  Bg6 {[%clk 0:02:10]} 12. Qd1 {[%clk 0:00:44]}  Bd6 {[%clk 0:01:49]} 13. Bc2 {[%clk 0:00:36]}  O-O {[%clk 0:01:36]} 14. Bxg6 {[%clk 0:00:35]}  hxg6 {[%clk 0:01:37]} 15. e4 {[%clk 0:00:30]}  Nc5 {[%clk 0:01:37]} 16. Qe2 {[%clk 0:00:25]}  c6 {[%clk 0:01:38]} 17. O-O {[%clk 0:00:25]}  Qe7 {[%clk 0:01:36]} 18. Rd1 {[%clk 0:00:19]}  Rfd8 {[%clk 0:01:33]} 19. b4 {[%clk 0:00:17]}  Na4 {[%clk 0:01:26]} 20. Nb1 {[%clk 0:00:09]}  c5 {[%clk 0:01:22]} 21. a3 {[%clk 0:00:08]}  Bc7 {[%clk 0:01:18]} 22. Bg5 {[%clk 0:00:08]}  c4 {[%clk 0:01:14]} 23. Rxd8+ {[%clk 0:00:08]}  Rxd8 {[%clk 0:01:14]} 24. Qe3 {[%clk 0:00:07]}  Rd1+ {[%clk 0:01:12]} 25. Ne1 {[%clk 0:00:07]}  Bb6 {[%clk 0:01:09]} 26. Qe2 {[%clk 0:00:08]}  Qd7 {[%clk 0:01:09]} 27. Nd2 {[%clk 0:00:08]}  Rxa1 {[%clk 0:01:07]} 0-1


[Site "https://www.chess.com"]

[Event "Titled Tuesday Blitz March 28 Early 2023"]
[White "Dzhumagaliev, Yan"]
[Black "Riff, Vincent"]
[WhiteFideId "24100110"]
[BlackFideId "617776"]
[WhiteElo "2476"]
[BlackElo "2369"]
[Result "1-0"]
[Round "02"]
[TimeControl "180+2"]
[Date "2023.03.28"]
[WhiteClock "0:00:53"]
[BlackClock "0:01:37"]

1. Nf3 {[%clk 0:03:00]}  Nf6 {[%clk 0:02:59]} 2. h4 {[%clk 0:03:01]}  d6 {[%clk 0:02:58]} 3. h5 {[%clk 0:03:02]}  e5 {[%clk 0:02:59]} 4. d4 {[%clk 0:03:02]}  e4 {[%clk 0:02:59]} 5. Ng1 {[%clk 0:03:02]}  h6 {[%clk 0:02:58]} 6. Bf4 {[%clk 0:03:01]}  Bg4 {[%clk 0:02:56]} 7. c4 {[%clk 0:02:59]}  Bxh5 {[%clk 0:02:55]} 8. Qb3 {[%clk 0:03:00]}  b6 {[%clk 0:02:54]} 9. Rxh5 {[%clk 0:02:58]}  Nxh5 {[%clk 0:02:54]} 10. Qb5+ {[%clk 0:02:58]}  Nd7 {[%clk 0:02:47]} 11. Qxh5 {[%clk 0:02:58]}  g5 {[%clk 0:02:46]} 12. Bc1 {[%clk 0:02:51]}  Bg7 {[%clk 0:02:46]} 13. e3 {[%clk 0:02:50]}  Qe7 {[%clk 0:02:45]} 14. Nc3 {[%clk 0:02:48]}  O-O {[%clk 0:02:43]} 15. Qg4 {[%clk 0:02:29]}  Nf6 {[%clk 0:02:40]} 16. Qf5 {[%clk 0:02:29]}  c5 {[%clk 0:02:41]} 17. Nge2 {[%clk 0:02:22]}  Rac8 {[%clk 0:02:37]} 18. Ng3 {[%clk 0:02:04]}  Rfe8 {[%clk 0:02:35]} 19. Nd5 {[%clk 0:01:48]}  Nxd5 {[%clk 0:02:35]} 20. Qxd5 {[%clk 0:01:49]}  b5 {[%clk 0:02:28]} 21. Nf5 {[%clk 0:01:33]}  Qf6 {[%clk 0:02:28]} 22. g4 {[%clk 0:01:33]}  Re6 {[%clk 0:02:07]} 23. cxb5 {[%clk 0:01:28]}  cxd4 {[%clk 0:02:03]} 24. exd4 {[%clk 0:01:29]}  Bf8 {[%clk 0:01:55]} 25. Be3 {[%clk 0:01:14]}  Ree8 {[%clk 0:01:53]} 26. Bc4 {[%clk 0:01:06]}  Rc7 {[%clk 0:01:54]} 27. b3 {[%clk 0:01:05]}  Re6 {[%clk 0:01:44]} 28. Rd1 {[%clk 0:01:02]}  Qg6 {[%clk 0:01:41]} 29. Ng3 {[%clk 0:00:58]}  Rf6 {[%clk 0:01:38]} 30. Qxe4 {[%clk 0:00:54]}  Qg7 {[%clk 0:01:37]} 31. Nh5 {[%clk 0:00:53]} 1-0


[Site "https://www.chess.com"]

[Event "Titled Tuesday Blitz March 28 Early 2023"]
[White "Wong, Yinn Long"]
[Black "Jimenez Almeida, Luis David"]
[WhiteFideId "5707684"]
[BlackFideId "22242244"]
[WhiteElo "2271"]
[BlackElo "2245"]
[Result "0-1"]
[Round "02"]
[TimeControl "180+2"]
[Date "2023.03.28"]
[WhiteClock "0:00:09"]
[BlackClock "0:00:10"]

1. d4 {[%clk 0:03:00]}  g6 {[%clk 0:02:57]} 2. e4 {[%clk 0:03:00]}  c6 {[%clk 0:02:56]} 3. Nc3 {[%clk 0:03:00]}  Bg7 {[%clk 0:02:56]} 4. Nf3 {[%clk 0:02:59]}  d6 {[%clk 0:02:53]} 5. h3 {[%clk 0:02:57]}  Nf6 {[%clk 0:02:50]} 6. Be2 {[%clk 0:02:57]}  Na6 {[%clk 0:02:49]} 7. O-O {[%clk 0:02:57]}  Nc7 {[%clk 0:02:49]} 8. Re1 {[%clk 0:02:55]}  O-O {[%clk 0:02:49]} 9. Bg5 {[%clk 0:02:54]}  h6 {[%clk 0:02:46]} 10. Be3 {[%clk 0:02:54]}  a5 {[%clk 0:02:39]} 11. Qd2 {[%clk 0:02:54]}  Kh7 {[%clk 0:02:40]} 12. Rad1 {[%clk 0:02:53]}  Qe8 {[%clk 0:02:23]} 13. e5 {[%clk 0:02:44]}  Nfd5 {[%clk 0:02:19]} 14. exd6 {[%clk 0:02:36]}  Nxe3 {[%clk 0:02:09]} 15. dxe7 {[%clk 0:02:15]}  Qxe7 {[%clk 0:01:57]} 16. Qxe3 {[%clk 0:02:14]}  Qb4 {[%clk 0:01:54]} 17. Qc1 {[%clk 0:02:02]}  Be6 {[%clk 0:01:50]} 18. a3 {[%clk 0:02:01]}  Qd6 {[%clk 0:01:42]} 19. Ne4 {[%clk 0:02:01]}  Qd8 {[%clk 0:01:37]} 20. c4 {[%clk 0:01:56]}  Re8 {[%clk 0:01:30]} 21. Bd3 {[%clk 0:01:49]}  Bf5 {[%clk 0:01:18]} 22. g4 {[%clk 0:01:19]}  Bc8 {[%clk 0:01:08]} 23. Bb1 {[%clk 0:01:06]}  f5 {[%clk 0:01:04]} 24. gxf5 {[%clk 0:00:38]}  Bxf5 {[%clk 0:01:05]} 25. Kg2 {[%clk 0:00:37]}  Qd7 {[%clk 0:01:00]} 26. Ng3 {[%clk 0:00:25]}  Bxh3+ {[%clk 0:00:59]} 27. Kh2 {[%clk 0:00:25]}  Bg4 {[%clk 0:00:58]} 28. Nh4 {[%clk 0:00:19]}  Bxd1 {[%clk 0:00:40]} 29. Bxg6+ {[%clk 0:00:18]}  Kg8 {[%clk 0:00:40]} 30. Bxe8 {[%clk 0:00:18]}  Rxe8 {[%clk 0:00:36]} 31. Rxe8+ {[%clk 0:00:18]}  Nxe8 {[%clk 0:00:33]} 32. Qxd1 {[%clk 0:00:19]}  Qxd4 {[%clk 0:00:32]} 33. Qe2 {[%clk 0:00:19]}  Qxh4+ {[%clk 0:00:25]} 34. Kg2 {[%clk 0:00:19]}  Qd8 {[%clk 0:00:17]} 35. Nf5 {[%clk 0:00:18]}  Qg5+ {[%clk 0:00:16]} 36. Ng3 {[%clk 0:00:17]}  Nf6 {[%clk 0:00:16]} 37. Qe6+ {[%clk 0:00:17]}  Kh7 {[%clk 0:00:16]} 38. Kf1 {[%clk 0:00:18]}  h5 {[%clk 0:00:16]} 39. Ne2 {[%clk 0:00:17]}  h4 {[%clk 0:00:16]} 40. b4 {[%clk 0:00:15]}  axb4 {[%clk 0:00:16]} 41. axb4 {[%clk 0:00:16]}  Qg4 {[%clk 0:00:16]} 42. Qe3 {[%clk 0:00:12]}  h3 {[%clk 0:00:15]} 43. Qe5 {[%clk 0:00:10]}  Qxc4 {[%clk 0:00:13]} 44. Qf5+ {[%clk 0:00:10]}  Kg8 {[%clk 0:00:12]} 45. Qxh3 {[%clk 0:00:11]}  Qxb4 {[%clk 0:00:12]} 46. Qe6+ {[%clk 0:00:12]}  Kf8 {[%clk 0:00:12]} 47. Qc8+ {[%clk 0:00:12]}  Ne8 {[%clk 0:00:12]} 48. Qf5+ {[%clk 0:00:12]}  Ke7 {[%clk 0:00:10]} 49. Nf4 {[%clk 0:00:12]}  Qb5+ {[%clk 0:00:09]} 50. Qxb5 {[%clk 0:00:11]}  cxb5 {[%clk 0:00:10]} 51. Ke2 {[%clk 0:00:12]}  Kd6 {[%clk 0:00:11]} 52. Kd3 {[%clk 0:00:12]}  Nc7 {[%clk 0:00:11]} 53. Ne2 {[%clk 0:00:11]}  Nd5 {[%clk 0:00:10]} 54. Ng3 {[%clk 0:00:12]}  Kc5 {[%clk 0:00:10]} 55. Nf5 {[%clk 0:00:11]}  Be5 {[%clk 0:00:10]} 56. Ke4 {[%clk 0:00:10]}  Bc7 {[%clk 0:00:10]} 57. Nd4 {[%clk 0:00:10]}  Nc3+ {[%clk 0:00:10]} 58. Kd3 {[%clk 0:00:10]}  Nd5 {[%clk 0:00:10]} 59. Ne6+ {[%clk 0:00:09]}  Kd6 {[%clk 0:00:11]} 60. Nd4 {[%clk 0:00:10]}  b4 {[%clk 0:00:11]} 61. Kc4 {[%clk 0:00:10]}  Bb6 {[%clk 0:00:09]} 62. Nb5+ {[%clk 0:00:09]}  Kc6 {[%clk 0:00:10]} 0-1


[Site "https://www.chess.com"]

[Event "Titled Tuesday Blitz March 28 Early 2023"]
[White "Kuzmin, Roman"]
[Black "Bryakin, Mikhail"]
[WhiteFideId "44134932"]
[BlackFideId "4165314"]
[WhiteElo "2146"]
[BlackElo "2449"]
[Result "1-0"]
[Round "02"]
[TimeControl "180+2"]
[Date "2023.03.28"]
[WhiteClock "0:00:08"]
[BlackClock "0:01:27"]

1. e4 {[%clk 0:03:00]}  c5 {[%clk 0:02:47]} 2. Nf3 {[%clk 0:03:00]}  d6 {[%clk 0:02:43]} 3. d4 {[%clk 0:03:00]}  cxd4 {[%clk 0:02:43]} 4. Nxd4 {[%clk 0:03:01]}  Nf6 {[%clk 0:02:43]} 5. Nc3 {[%clk 0:03:02]}  a6 {[%clk 0:02:43]} 6. Be2 {[%clk 0:03:02]}  e5 {[%clk 0:02:43]} 7. Nb3 {[%clk 0:03:02]}  Be6 {[%clk 0:02:42]} 8. f4 {[%clk 0:03:02]}  Qc7 {[%clk 0:02:32]} 9. g4 {[%clk 0:02:54]}  exf4 {[%clk 0:02:28]} 10. g5 {[%clk 0:02:44]}  Nfd7 {[%clk 0:02:24]} 11. Bxf4 {[%clk 0:02:41]}  Nc6 {[%clk 0:02:25]} 12. Qd2 {[%clk 0:02:28]}  Be7 {[%clk 0:02:23]} 13. O-O-O {[%clk 0:02:19]}  Nce5 {[%clk 0:02:23]} 14. Nd4 {[%clk 0:02:06]}  O-O {[%clk 0:02:15]} 15. Nf5 {[%clk 0:02:03]}  Bxf5 {[%clk 0:02:04]} 16. Nd5 {[%clk 0:01:57]}  Qd8 {[%clk 0:02:01]} 17. exf5 {[%clk 0:01:58]}  Re8 {[%clk 0:01:50]} 18. Nxe7+ {[%clk 0:01:25]}  Qxe7 {[%clk 0:01:50]} 19. Qxd6 {[%clk 0:01:22]}  Qxd6 {[%clk 0:01:50]} 20. Rxd6 {[%clk 0:01:22]}  Nf8 {[%clk 0:01:48]} 21. Rhd1 {[%clk 0:01:16]}  Rac8 {[%clk 0:01:47]} 22. b3 {[%clk 0:01:01]}  g6 {[%clk 0:01:45]} 23. f6 {[%clk 0:00:55]}  h5 {[%clk 0:01:45]} 24. gxh6 {[%clk 0:00:34]}  Kh7 {[%clk 0:01:43]} 25. h4 {[%clk 0:00:32]}  Nc6 {[%clk 0:01:42]} 26. Bc4 {[%clk 0:00:28]}  Ne5 {[%clk 0:01:42]} 27. Bxe5 {[%clk 0:00:27]}  Rxe5 {[%clk 0:01:43]} 28. Bxf7 {[%clk 0:00:27]}  Kxh6 {[%clk 0:01:44]} 29. Bc4 {[%clk 0:00:23]}  Rf5 {[%clk 0:01:44]} 30. f7 {[%clk 0:00:19]}  b5 {[%clk 0:01:44]} 31. Bd5 {[%clk 0:00:19]}  a5 {[%clk 0:01:40]} 32. Re1 {[%clk 0:00:18]}  Nh7 {[%clk 0:01:37]} 33. Re8 {[%clk 0:00:15]}  Rc5 {[%clk 0:01:37]} 34. c4 {[%clk 0:00:12]}  bxc4 {[%clk 0:01:38]} 35. bxc4 {[%clk 0:00:10]}  Rf2 {[%clk 0:01:38]} 36. Rdd8 {[%clk 0:00:08]}  Rxa2 {[%clk 0:01:33]} 37. Rh8 {[%clk 0:00:07]}  Ra1+ {[%clk 0:01:27]} 38. Kb2 {[%clk 0:00:07]}  Rf1 {[%clk 0:01:28]} 39. f8=Q+ {[%clk 0:00:07]}  Rxf8 {[%clk 0:01:27]} 40. Rdxf8 {[%clk 0:00:08]} 1-0


[Site "https://www.chess.com"]

[Event "Titled Tuesday Blitz March 28 Early 2023"]
[White "ElDivis"]
[Black "Albornoz Cabrera, Carlos Daniel"]
[BlackFideId "3518736"]
[WhiteElo "2453"]
[BlackElo "2501"]
[Result "0-1"]
[Round "02"]
[TimeControl "180+2"]
[Date "2023.03.28"]
[WhiteClock "0:00:33"]
[BlackClock "0:01:07"]

1. d4 {[%clk 0:03:00]}  Nf6 {[%clk 0:02:59]} 2. Nf3 {[%clk 0:02:59]}  g6 {[%clk 0:03:00]} 3. c4 {[%clk 0:02:59]}  d6 {[%clk 0:02:59]} 4. Nc3 {[%clk 0:02:58]}  Bg7 {[%clk 0:03:00]} 5. e4 {[%clk 0:02:58]}  Bg4 {[%clk 0:03:00]} 6. Be2 {[%clk 0:02:38]}  O-O {[%clk 0:02:59]} 7. Ng1 {[%clk 0:02:38]}  Bxe2 {[%clk 0:02:57]} 8. Ngxe2 {[%clk 0:02:38]}  c5 {[%clk 0:02:58]} 9. d5 {[%clk 0:02:33]}  e6 {[%clk 0:02:56]} 10. O-O {[%clk 0:02:33]}  exd5 {[%clk 0:02:56]} 11. cxd5 {[%clk 0:02:27]}  b5 {[%clk 0:02:48]} 12. Nxb5 {[%clk 0:02:20]}  Nxe4 {[%clk 0:02:48]} 13. Nbc3 {[%clk 0:02:21]}  Nxc3 {[%clk 0:02:46]} 14. Nxc3 {[%clk 0:02:22]}  Nd7 {[%clk 0:02:46]} 15. Bf4 {[%clk 0:02:22]}  Ne5 {[%clk 0:02:42]} 16. Re1 {[%clk 0:02:14]}  Rb8 {[%clk 0:02:41]} 17. b3 {[%clk 0:02:06]}  Rb4 {[%clk 0:02:33]} 18. Bg3 {[%clk 0:01:47]}  Rd4 {[%clk 0:02:27]} 19. Qc2 {[%clk 0:01:43]}  Nd3 {[%clk 0:02:20]} 20. Re3 {[%clk 0:01:29]}  Nb4 {[%clk 0:02:15]} 21. Qe2 {[%clk 0:01:29]}  Nxd5 {[%clk 0:02:05]} 22. Nxd5 {[%clk 0:01:27]}  Rxd5 {[%clk 0:02:06]} 23. Re1 {[%clk 0:01:23]}  h5 {[%clk 0:01:59]} 24. h4 {[%clk 0:01:15]}  Bd4 {[%clk 0:01:46]} 25. Re8 {[%clk 0:01:01]}  Qf6 {[%clk 0:01:21]} 26. Rxf8+ {[%clk 0:00:47]}  Kxf8 {[%clk 0:01:22]} 27. Qe8+ {[%clk 0:00:46]}  Kg7 {[%clk 0:01:22]} 28. Qa8 {[%clk 0:00:46]}  Rf5 {[%clk 0:01:17]} 29. Re8 {[%clk 0:00:46]}  Bxf2+ {[%clk 0:01:06]} 30. Bxf2 {[%clk 0:00:33]}  Rxf2 {[%clk 0:01:07]} 0-1


[Site "https://www.chess.com"]